fUST/lending_fUST_20240117
["ID","MTS","AMOUNT","RATE_DAILY","PERIOD"]
[311817470,1705433441654,-519.45523657,0.0003178,2]
[311817471,1705433441663,-500.0,0.0003178,2]
[311817472,1705433441673,-510.31581156,0.0003178,2]
[311817473,1705433441682,-500.0,0.0003178,2]
[311817474,1705433441691,-500.0,0.0003178,2]
[311817475,1705433441701,-500.0,0.0003178,2]
[311817476,1705433441710,-500.0,0.0003178,2]
[311817477,1705433441720,-813.19,0.0003178,2]
[311817478,1705433441729,-400.0,0.0003178,2]
[311817479,1705433441797,-500.0,0.0003178,2]
[311817480,1705433441807,-1246.77,0.0003178,2]
[311817481,1705433441816,-500.0,0.0003178,2]
[311817482,1705433441826,-500.0,0.0003178,2]
[311817483,1705433441835,-201.92967821,0.0003178,2]
[311817484,1705433441845,-522.03,0.0003178,2]
[311817485,1705433441854,-632.52767945,0.0003178,2]
[311817486,1705433441863,-500.0,0.0003178,2]
[311817487,1705433441873,-500.0,0.0003178,2]
[311817488,1705433441882,-500.0,0.0003178,2]
[311817489,1705433441891,-500.0,0.0003178,2]
[311817490,1705433441900,-1000.0,0.0003178,2]
[311817491,1705433441910,-501.80176143,0.0003178,2]
[311817492,1705433441919,-500.0,0.0003178,2]
[311817493,1705433441928,-500.0,0.0003178,2]
[311817494,1705433441938,-500.0,0.0003178,2]
[311817495,1705433441947,-151.0,0.0003178,2]
[311817496,1705433441956,-151.0,0.0003178,2]
[311817497,1705433441965,-151.0,0.0003178,2]
[311817498,1705433441975,-151.0,0.0003178,2]
[311817499,1705433441985,-151.0,0.0003178,2]
[311817500,1705433441994,-151.0,0.0003178,2]
[311817501,1705433442003,-151.0,0.0003178,2]
[311817502,1705433442013,-151.0,0.0003178,2]
[311817503,1705433442022,-500.0,0.0003178,2]
[311817504,1705433442031,-151.0,0.0003178,2]
[311817505,1705433442040,-500.0,0.0003178,2]
[311817506,1705433442050,-500.0,0.0003178,2]
[311817507,1705433442059,-500.0,0.0003178,2]
[311817508,1705433442069,-500.0,0.0003178,2]
[311817509,1705433442078,-500.0,0.0003178,2]
[311817510,1705433442087,-500.0,0.0003178,2]
[311817511,1705433442097,-853.34,0.0003178,2]
[311817512,1705433442106,-500.0,0.0003178,2]
[311817513,1705433442115,-607.48,0.0003178,2]
[311817514,1705433442124,-500.0,0.0003178,2]
[311817515,1705433442133,-601.06064518,0.0003178,2]
[311817516,1705433442142,-495.49025751,0.0003178,2]
[311817517,1705433442152,-500.0,0.0003178,2]
[311817518,1705433442161,-500.0,0.0003178,2]
[311817519,1705433442170,-500.0,0.0003178,2]
[311817520,1705433442179,-500.0,0.0003178,2]
[311817521,1705433442189,-500.0,0.0003178,2]
[311817522,1705433442198,-427.70821811,0.0003178,2]
[311817523,1705433442207,-500.0,0.0003178,2]
[311817524,1705433442217,-500.0,0.0003178,2]
[311817525,1705433442226,-500.0,0.0003178,2]
[311817526,1705433442235,-500.0,0.0003178,2]
[311817527,1705433442244,-500.0,0.0003178,2]
[311817528,1705433442254,-500.0,0.0003178,2]
[311817529,1705433442263,-500.0,0.0003178,2]
[311817530,1705433442273,-1000.0,0.0003178,2]
[311817531,1705433442283,-500.0,0.0003178,2]
[311817532,1705433442292,-500.0,0.0003178,2]
[311817533,1705433442302,-500.0,0.0003178,2]
[311817534,1705433442312,-500.0,0.0003178,2]
[311817535,1705433442321,-545.97310456,0.0003178,2]
[311817536,1705433442331,-503.55595716,0.0003178,2]
[311817537,1705433442341,-500.59560856,0.0003178,2]
[311817538,1705433442350,-500.0,0.0003178,2]
[311817539,1705433442359,-557.01681763,0.0003178,2]
[311817540,1705433442369,-155.14192239,0.0003178,2]
[311817541,1705433442378,-500.0,0.0003178,2]
[311817542,1705433442392,-500.0,0.0003178,2]
[311817543,1705433442401,-509.82347944,0.0003178,2]
[311817544,1705433442410,-500.0,0.0003178,2]
[311817545,1705433442419,-254.73333895,0.0003178,2]
[311817546,1705433442429,-533.4106989,0.0003178,2]
[311817547,1705433442439,-500.0,0.0003178,2]
[311817548,1705433442448,-524.52232068,0.0003178,2]
[311817549,1705433442458,-790.03,0.0003178,2]
[311817550,1705433442472,-554.32556193,0.0003178,2]
[311817551,1705433442481,-500.0,0.0003178,2]
[311817552,1705433442491,-155.93861246,0.0003178,2]
[311817553,1705433442500,-500.0,0.0003178,2]
[311817554,1705433442510,-503.24411305,0.0003178,2]
[311817555,1705433442519,-500.0,0.0003178,2]
[311817556,1705433442528,-510.22549501,0.0003178,2]
[311817557,1705433442537,-500.0,0.0003178,2]
[311817558,1705433442547,-500.0,0.0003178,2]
[311817559,1705433442556,-500.0,0.0003178,2]
[311817560,1705433442565,-500.0,0.0003178,2]
[311817561,1705433442574,-500.0,0.0003178,2]
[311817562,1705433442583,-500.4137572,0.0003178,2]
[311817563,1705433442593,-500.0,0.0003178,2]
[311817564,1705433442602,-500.0,0.0003178,2]
[311817565,1705433442611,-500.0,0.0003178,2]
[311817566,1705433442620,-500.0,0.0003178,2]
[311817567,1705433442629,-500.0,0.0003178,2]
[311817568,1705433442638,-502.71971081,0.0003178,2]
[311817569,1705433442647,-500.0,0.0003178,2]
[311817570,1705433442657,-503.5641367,0.0003178,2]
[311817571,1705433442666,-500.0,0.0003178,2]
[311817572,1705433442676,-500.0,0.0003178,2]
[311817573,1705433442685,-500.0,0.0003178,2]
[311817574,1705433442694,-500.0,0.0003178,2]
[311817575,1705433442703,-502.03137256,0.0003178,2]
[311817576,1705433442712,-500.0,0.0003178,2]
[311817577,1705433442721,-500.0,0.0003178,2]
[311817578,1705433442731,-893.0,0.0003178,2]
[311817579,1705433442741,-451.80013938,0.0003178,2]
[311817580,1705433442750,-500.0,0.0003178,2]
[311817581,1705433442759,-500.0,0.0003178,2]
[311817582,1705433442768,-500.0,0.0003178,2]
[311817583,1705433442777,-502.36,0.0003178,2]
[311817584,1705433442786,-500.0,0.0003178,2]
[311817585,1705433442795,-501.83812293,0.0003178,2]
[311817586,1705433442804,-500.0,0.0003178,2]
[311817587,1705433442814,-540.3,0.0003178,2]
[311817588,1705433442823,-500.0,0.0003178,2]
[311817589,1705433442832,-669.848298,0.0003178,2]
[311817590,1705433442842,-669.848298,0.0003178,2]
[311817591,1705433442851,-669.848298,0.0003178,2]
[311817592,1705433442860,-669.848298,0.0003178,2]
[311817593,1705433442869,-669.848298,0.0003178,2]
[311817594,1705433442879,-669.848298,0.0003178,2]
[311817595,1705433442888,-504.42543785,0.0003178,2]
[311817596,1705433442897,-669.848298,0.0003178,2]
[311817597,1705433442906,-669.848298,0.0003178,2]
[311817598,1705433442916,-501.90946252,0.0003178,2]
[311817599,1705433442926,-669.848298,0.0003178,2]
[311817600,1705433442936,-669.848298,0.0003178,2]
[311817601,1705433443003,-500.0,0.0003178,2]
[311817602,1705433443013,-669.848298,0.0003178,2]
[311817603,1705433443022,-669.848298,0.0003178,2]
[311817604,1705433443031,-669.848298,0.0003178,2]
[311817605,1705433443041,-669.84828934,0.0003178,2]
[311817606,1705433443050,-500.0,0.0003178,2]
[311817607,1705433443060,-500.0,0.0003178,2]
[311817608,1705433443070,-506.18783896,0.0003178,2]
[311817609,1705433443079,-500.0,0.0003178,2]
[311817610,1705433443088,-500.0,0.0003178,2]
[311817611,1705433443097,-500.0,0.0003178,2]
[311817612,1705433443106,-500.0,0.0003178,2]
[311817613,1705433443115,-500.0,0.0003178,2]
[311817614,1705433443125,-500.0,0.0003178,2]
[311817615,1705433443134,-1467.52,0.0003178,2]
[311817617,1705433443143,-500.0,0.0003178,2]
[311817618,1705433443152,-500.31587966,0.0003178,2]
[311817620,1705433443161,-611.78,0.0003178,2]
[311817623,1705433443170,-500.0,0.0003178,2]
[311817624,1705433443179,-500.0,0.0003178,2]
[311817625,1705433443188,-501.87620769,0.0003178,2]
[311817626,1705433443197,-500.0,0.0003178,2]
[311817627,1705433443206,-635.28684981,0.0003178,2]
[311817628,1705433443216,-503.96104617,0.0003178,2]
[311817629,1705433443225,-500.0,0.0003178,5]
[311817630,1705433443234,-503.66,0.0003178,2]
[311817631,1705433443243,-500.0,0.0003178,2]
[311817632,1705433443252,-500.0,0.0003178,2]
[311817633,1705433443267,-500.0,0.0003178,2]
[311817635,1705433443282,-500.0,0.0003178,2]
[311817637,1705433443292,-225.97871656,0.0003178,2]
[311817638,1705433443302,-500.0,0.0003178,2]
[311817639,1705433443312,-503.76180675,0.0003178,2]
[311817640,1705433443322,-1244.34,0.0003178,2]
[311817642,1705433443332,-500.0,0.0003178,2]
[311817643,1705433443342,-816.66,0.0003178,2]
[311817644,1705433443352,-1068.07,0.0003178,2]
[311817645,1705433443362,-1153.35,0.0003178,2]
[311817646,1705433443371,-503.28058642,0.0003178,2]
[311817647,1705433443381,-1737.82,0.0003178,2]
[311817649,1705433443395,-500.0,0.0003178,2]
[311817651,1705433443405,-500.0,0.0003178,2]
[311817653,1705433443414,-512.04464966,0.0003178,2]
[311817655,1705433443425,-502.41179207,0.0003178,2]
[311817656,1705433443435,-500.0,0.0003178,2]
[311817657,1705433443444,-500.0,0.0003178,2]
[311817658,1705433443454,-657.638535,0.0003178,2]
[311817659,1705433443466,-657.638535,0.0003178,2]
[311817660,1705433443477,-657.638535,0.0003178,2]
[311817661,1705433443487,-500.0,0.0003178,2]
[311817662,1705433443496,-657.638535,0.0003178,2]
[311817663,1705433443506,-657.638535,0.0003178,2]
[311817664,1705433443515,-657.638535,0.0003178,2]
[311817665,1705433443525,-657.638535,0.0003178,2]
[311817666,1705433443534,-6352.72,0.0003178,2]
[311817667,1705433443545,-657.638535,0.0003178,2]
[311817668,1705433443554,-657.638535,0.0003178,2]
[311817669,1705433443564,-657.638535,0.0003178,2]
[311817670,1705433443573,-657.638535,0.0003178,2]
[311817671,1705433443583,-657.638535,0.0003178,2]
[311817672,1705433443593,-657.638535,0.0003178,2]
[311817673,1705433443603,-657.638537,0.0003178,2]
[311817674,1705433443613,-500.0,0.0003178,2]
[311817676,1705433443622,-500.0,0.0003178,2]
[311817678,1705433443631,-500.0,0.0003178,2]
[311817680,1705433443641,-500.0,0.0003178,2]
[311817682,1705433443650,-792.65,0.0003178,2]
[311817684,1705433443659,-469.16022048,0.0003178,2]
[311817686,1705433443669,-792.65,0.0003178,2]
[311817688,1705433443678,-792.65,0.0003178,2]
[311817690,1705433443687,-792.65,0.0003178,2]
[311817691,1705433443697,-8077.77,0.0003178,2]
[311817692,1705433443707,-792.65,0.0003178,2]
[311817693,1705433443716,-792.65,0.0003178,2]
[311817694,1705433443725,-792.65,0.0003178,2]
[311817695,1705433443736,-792.65,0.0003178,2]
[311817696,1705433443745,-792.65,0.0003178,2]
[311817697,1705433443756,-929.35,0.0003178,2]
[311817698,1705433443765,-792.65,0.0003178,2]
[311817699,1705433443775,-792.65,0.0003178,2]
[311817700,1705433443785,-409.36031585,0.0003178,2]
[311817701,1705433443795,-792.65,0.0003178,2]
[311817702,1705433443804,-500.0,0.0003178,2]
[311817703,1705433443814,-500.0,0.0003178,2]
[311817704,1705433443824,-500.0,0.0003178,2]
[311817705,1705433443834,-500.0,0.0003178,2]
[311817706,1705433443843,-436.3188985,0.0003178,2]
[311817707,1705433443853,-197.29705846,0.0003178,2]
[311817708,1705433443862,-1624.23,0.0003178,2]
[311817709,1705433443872,-500.0,0.0003178,2]
[311817710,1705433443882,-253.24117854,0.0003178,2]
[311817711,1705433443891,-500.0,0.0003178,2]
[311817712,1705433443901,-500.0,0.0003178,2]
[311817713,1705433443910,-500.0,0.0003178,2]
[311817714,1705433443919,-500.0,0.0003178,2]
[311817715,1705433443929,-2120.16,0.0003178,2]
[311817716,1705433443939,-500.0,0.0003178,2]
[311817717,1705433443948,-500.0,0.0003178,2]
[311817718,1705433443958,-150.0,0.0003178,2]
[311817719,1705433443967,-473.06114701,0.0003178,2]
[311817720,1705433443976,-501.84184187,0.0003178,2]
[311817721,1705433443986,-500.0,0.0003178,2]
[311817722,1705433443996,-500.0,0.0003178,2]
[311817723,1705433444005,-151.0,0.0003178,2]
[311817724,1705433444014,-151.0,0.0003178,2]
[311817725,1705433444024,-151.0,0.0003178,2]
[311817726,1705433444033,-151.0,0.0003178,2]
[311817727,1705433444043,-151.0,0.0003178,2]
[311817728,1705433444052,-1644.43,0.0003178,2]
[311817729,1705433444062,-151.0,0.0003178,2]
[311817730,1705433444071,-356.66371948,0.0003178,2]
[311817731,1705433444081,-502.42103495,0.0003178,2]
[311817732,1705433444163,-500.0,0.0003178,2]
[311817733,1705433444172,-580.79,0.0003178,2]
[311817734,1705433444182,-500.0,0.0003178,4]
[311817735,1705433444191,-2574.87,0.0003178,2]
[311817736,1705433444200,-500.0,0.0003178,2]
[311817737,1705433444209,-500.0,0.0003178,2]
[311817738,1705433444218,-2623.25,0.0003178,2]
[311817739,1705433444227,-500.74578859,0.0003178,2]
[311817740,1705433444236,-5222.48,0.0003178,2]
[311817741,1705433444246,-500.0,0.0003178,2]
[311817742,1705433444255,-500.0,0.0003178,2]
[311817743,1705433444264,-500.0,0.0003178,2]
[311817744,1705433444274,-500.0,0.0003178,2]
[311817745,1705433444283,-500.0,0.0003178,2]
[311817746,1705433444293,-500.0,0.0003178,2]
[311817747,1705433444302,-500.0,0.0003178,2]
[311817748,1705433444311,-15533.7,0.0003178,2]
[311817749,1705433444320,-500.0,0.0003178,2]
[311817750,1705433444329,-500.0,0.0003178,2]
[311817751,1705433444338,-182.65485512,0.0003178,2]
[311817752,1705433444347,-500.0,0.0003178,2]
[311817753,1705433444356,-1341.81,0.0003178,2]
[311817754,1705433444365,-6757.02,0.0003178,2]
[311817755,1705433444375,-296.42767224,0.0003178,2]
[311817756,1705433444385,-720.53,0.0003178,2]
[311817757,1705433444395,-245.87781331,0.0003178,2]
[311817758,1705433444404,-151.0,0.0003178,2]
[311817759,1705433444414,-500.0,0.0003178,2]
[311817760,1705433444422,-151.0,0.0003178,2]
[311817761,1705433444432,-151.0,0.0003178,2]
[311817762,1705433444442,-151.0,0.0003178,2]
[311817763,1705433444451,-500.02,0.0003178,2]
[311817764,1705433444461,-217.599999,0.0003178,2]
[311817765,1705433444470,-500.0,0.0003178,2]
[311817766,1705433444480,-500.0,0.0003178,2]
[311817767,1705433444490,-500.0,0.0003178,2]
[311817768,1705433444499,-500.0,0.0003178,2]
[311817769,1705433444509,-500.0,0.0003178,2]
[311817770,1705433444518,-500.0,0.0003178,2]
[311817771,1705433444527,-1717.44,0.0003178,2]
[311817772,1705433444537,-535.61,0.0003178,2]
[311817773,1705433444546,-500.0,0.0003178,2]
[311817774,1705433444557,-500.0,0.0003178,2]
[311817775,1705433444566,-500.0,0.0003178,2]
[311817776,1705433444575,-500.0,0.0003178,2]
[311817777,1705433444585,-500.0,0.0003178,2]
[311817778,1705433444594,-500.0,0.0003178,2]
[311817779,1705433444603,-26233.07,0.0003178,2]
[311817780,1705433444612,-1708.17,0.0003178,2]
[311817781,1705433444621,-500.0,0.0003178,2]
[311817782,1705433444631,-500.81457172,0.0003178,2]
[311817783,1705433444641,-500.0,0.0003178,2]
[311817784,1705433444650,-500.0,0.0003178,2]
[311817785,1705433444659,-500.22522185,0.0003178,2]
[311817786,1705433444668,-500.0,0.0003178,2]
[311817787,1705433444677,-500.0,0.0003178,2]
[311817788,1705433444687,-500.0,0.0003178,2]
[311817789,1705433444697,-500.0,0.0003178,2]
[311817790,1705433444706,-168.11506356,0.0003178,2]
[311817791,1705433444715,-500.0,0.0003178,2]
[311817792,1705433444724,-500.0,0.0003178,2]
[311817793,1705433444733,-832.98,0.0003178,2]
[311817794,1705433444743,-500.0,0.0003178,2]
[311817795,1705433444752,-500.0,0.0003178,2]
[311817796,1705433444762,-500.0,0.0003178,2]
[311817797,1705433444772,-1068.71,0.0003178,2]
[311817798,1705433444782,-714.55,0.0003178,2]
[311817799,1705433444791,-500.0,0.0003178,2]
[311817800,1705433444801,-500.0,0.0003178,2]
[311817801,1705433444809,-512.2627489,0.0003178,2]
[311817802,1705433444819,-500.0,0.0003178,2]
[311817803,1705433444828,-645.14766908,0.0003178,2]
[311817804,1705433444837,-664.0,0.0003178,2]
[311817805,1705433444847,-500.0,0.0003178,2]
[311817806,1705433444856,-500.0,0.0003178,2]
[311817807,1705433444865,-500.0,0.0003178,2]
[311817808,1705433444874,-699.21,0.0003178,2]
[311817809,1705433444884,-500.0,0.0003178,2]
[311817810,1705433444893,-500.0,0.0003178,2]
[311817811,1705433444902,-500.47104189,0.0003178,2]
[311817812,1705433444911,-500.0,0.0003178,2]
[311817813,1705433444920,-500.0,0.0003178,2]
[311817814,1705433444929,-500.0,0.0003178,2]
[311817815,1705433444938,-500.0,0.0003178,2]
[311817816,1705433444947,-500.41994784,0.0003178,2]
[311817817,1705433444956,-501.42994804,0.0003178,2]
[311817818,1705433444965,-500.0,0.0003178,2]
[311817819,1705433444974,-500.0,0.0003178,2]
[311817820,1705433444984,-500.0,0.0003178,2]
[311817821,1705433444993,-2084.43,0.0003178,2]
[311817822,1705433445003,-500.0,0.0003178,2]
[311817823,1705433445012,-500.0,0.0003178,2]
[311817824,1705433445021,-500.0,0.0003178,2]
[311817825,1705433445030,-5346.27,0.0003178,2]
[311817826,1705433445039,-500.0,0.0003178,2]
[311817827,1705433445048,-500.0,0.0003178,2]
[311817828,1705433445058,-500.0,0.0003178,2]
[311817829,1705433445067,-500.0,0.0003178,2]
[311817830,1705433445076,-500.0,0.0003178,2]
[311817831,1705433445085,-632.42660337,0.0003178,2]
[311817832,1705433445094,-200.0,0.00031811,15]
[311817833,1705433445103,-5176.47440563,0.00031906,2]
[311817834,1705433445113,-220.88067529,0.00031906,2]
[311817835,1705433445174,-792.65,0.00031916,2]
[311817836,1705433445183,-792.65,0.00031916,2]
[311817837,1705433445192,-792.65,0.00031916,2]
[311817838,1705433445201,-792.65,0.00031916,2]
[311817839,1705433445211,-792.65,0.00031916,2]
[311817840,1705433445221,-500.0,0.00031917,2]
[311817841,1705433445230,-239.06152815,0.00031917,2]
[311817842,1705433445239,-500.0,0.00031917,2]
[311817843,1705433445248,-512.57906049,0.00031917,2]
[311817844,1705433445257,-500.0,0.00031917,2]
[311817845,1705433445266,-625.17,0.00031917,2]
[311817846,1705433445275,-325.69804921,0.00031917,2]
[311817847,1705433445284,-500.0,0.00031917,2]
[311817848,1705433445294,-500.0,0.00031917,2]
[311817849,1705433445302,-500.0,0.00031917,2]
[311817850,1705433445311,-500.0,0.00031917,2]
[311817851,1705433445321,-356.33341781,0.00031917,2]
[311817852,1705433445330,-500.0,0.00031917,2]
[311817853,1705433445340,-554.30799869,0.00031917,2]
[311817854,1705433445349,-500.0,0.00031917,2]
[311817855,1705433445358,-500.0,0.00031917,2]
[311817856,1705433445367,-413.27206186,0.00031917,2]
[311817857,1705433445376,-500.0,0.00031917,2]
[311817858,1705433445389,-500.0,0.00031917,2]
[311817859,1705433445398,-500.0,0.00031917,2]
[311817860,1705433445407,-500.0,0.00031917,2]
[311817861,1705433445416,-500.0,0.00031917,2]
[311817862,1705433445425,-500.0,0.00031917,2]
[311817863,1705433445434,-500.0,0.00031917,2]
[311817864,1705433445444,-1476.62,0.00031917,2]
[311817865,1705433445453,-500.0,0.00031917,2]
[311817866,1705433445462,-534.200587,0.00031917,2]
[311817867,1705433445471,-500.0,0.00031917,2]
[311817868,1705433445480,-500.0,0.00031917,2]
[311817869,1705433445489,-500.0,0.00031917,2]
[311817870,1705433445499,-573.4,0.00031917,2]
[311817871,1705433445508,-500.0,0.00031917,2]
[311817872,1705433445517,-500.0,0.00031917,2]
[311817873,1705433445526,-500.0,0.00031917,2]
[311817874,1705433445535,-500.0,0.00031917,2]
[311817875,1705433445545,-500.0,0.00031917,2]
[311817876,1705433445554,-500.0,0.00031917,2]
[311817877,1705433445564,-500.0,0.00031917,2]
[311817878,1705433445573,-500.0,0.00031917,2]
[311817879,1705433445582,-500.0,0.00031917,2]
[311817880,1705433445591,-500.0,0.00031917,2]
[311817881,1705433445600,-501.17368544,0.00031917,2]
[311817882,1705433445609,-502.45515726,0.00031917,2]
[311817883,1705433445630,-500.0,0.00031917,2]
[311817884,1705433445647,-766.15,0.00031917,2]
[311817885,1705433445663,-500.0,0.00031917,2]
[311817886,1705433445681,-500.0,0.00031917,2]
[311817887,1705433445698,-500.0,0.00031917,2]
[311817888,1705433445713,-500.0,0.00031917,2]
[311817889,1705433445729,-500.0,0.00031917,2]
[311817890,1705433445747,-500.0,0.00031917,2]
[311817891,1705433445760,-813.19,0.00031917,2]
[311817892,1705433445778,-500.0,0.00031917,2]
[311817893,1705433445795,-1246.77,0.00031917,2]
[311817894,1705433445810,-507.02958341,0.00031917,2]
[311817895,1705433445827,-500.0,0.00031917,2]
[311817896,1705433445845,-522.03,0.00031917,2]
[311817897,1705433445859,-500.0,0.00031917,2]
[311817898,1705433445871,-501.29941584,0.00031917,2]
[311817899,1705433445886,-500.0,0.00031917,2]
[311817900,1705433445900,-500.0,0.00031917,2]
[311817901,1705433445912,-1000.0,0.00031917,2]
[311817902,1705433445926,-500.0,0.00031917,2]
[311817903,1705433445940,-550.0,0.00031917,2]
[311817904,1705433445953,-500.0,0.00031917,2]
[311817905,1705433445966,-500.0,0.00031917,2]
[311817906,1705433445978,-504.59283408,0.00031917,2]
[311817907,1705433445991,-500.0,0.00031917,2]
[311817908,1705433446005,-500.0,0.00031917,2]
[311817909,1705433446018,-500.86629979,0.00031917,2]
[311817910,1705433446031,-501.5870556,0.00031917,2]
[311817911,1705433446044,-853.34,0.00031917,2]
[311817912,1705433446057,-500.0,0.00031917,2]
[311817913,1705433446069,-607.48,0.00031917,2]
[311817914,1705433446082,-500.0,0.00031917,2]
[311817915,1705433446096,-345.84708947,0.00031917,2]
[311817916,1705433446109,-500.0,0.00031917,2]
[311817917,1705433446122,-500.0,0.00031917,2]
[311817918,1705433446135,-500.0,0.00031917,2]
[311817920,1705433446147,-500.0,0.00031917,2]
[311817922,1705433446161,-219.77712494,0.00031917,2]
[311817924,1705433446174,-500.0,0.00031917,2]
[311817925,1705433446187,-292.07730286,0.00031917,2]
[311817926,1705433446200,-500.0,0.00031917,2]
[311817927,1705433446213,-500.0,0.00031917,2]
[311817928,1705433446226,-500.51196504,0.00031917,2]
[311817929,1705433446239,-500.0,0.00031917,2]
[311817930,1705433446252,-504.86294774,0.00031917,2]
[311817932,1705433446262,-500.0,0.00031917,2]
[311817934,1705433446271,-500.0,0.00031917,2]
[311817938,1705433446375,-500.0,0.00031917,2]
[311817939,1705433446385,-345.01609448,0.00031917,2]
[311817940,1705433446396,-504.58340469,0.00031917,2]
[311817941,1705433446405,-500.0,0.00031917,2]
[311817942,1705433446415,-500.0,0.00031917,2]
[311817944,1705433446424,-590.48447609,0.00031917,2]
[311817946,1705433446434,-790.03,0.00031917,2]
[311817947,1705433446443,-500.0,0.00031917,2]
[311817950,1705433446453,-500.0,0.00031917,2]
[311817951,1705433446463,-500.0,0.00031917,2]
[311817953,1705433446472,-500.0,0.00031917,2]
[311817954,1705433446481,-500.0,0.00031917,2]
[311817956,1705433446490,-500.0,0.00031917,2]
[311817958,1705433446500,-500.0,0.00031917,2]
[311817960,1705433446509,-500.0,0.00031917,2]
[311817962,1705433446518,-500.0,0.00031917,2]
[311817964,1705433446527,-500.0,0.00031917,2]
[311817966,1705433446536,-508.64246529,0.00031917,2]
[311817968,1705433446545,-186.76567446,0.00031917,2]
[311817970,1705433446555,-470.81914919,0.00031917,2]
[311817972,1705433446564,-500.0,0.00031917,2]
[311817973,1705433446574,-500.0,0.00031917,2]
[311817974,1705433446583,-893.0,0.00031917,2]
[311817975,1705433446592,-500.0,0.00031917,2]
[311817976,1705433446601,-510.94212336,0.00031917,2]
[311817977,1705433446612,-500.0,0.00031917,2]
[311817978,1705433446621,-502.36,0.00031917,2]
[311817979,1705433446630,-500.0,0.00031917,2]
[311817980,1705433446639,-500.0,0.00031917,2]
[311817981,1705433446648,-540.3,0.00031917,2]
[311817982,1705433446658,-550.67156865,0.00031917,2]
[311817983,1705433446667,-500.0,0.00031917,2]
[311817984,1705433446676,-500.0,0.00031917,2]
[311817985,1705433446686,-500.0,0.00031917,2]
[311817986,1705433446695,-500.0,0.00031917,2]
[311817987,1705433446704,-500.0,0.00031917,2]
[311817988,1705433446714,-500.0,0.00031917,2]
[311817989,1705433446723,-452.0982146,0.00031917,2]
[311817990,1705433446732,-1467.52,0.00031917,2]
[311817991,1705433446742,-611.78,0.00031917,2]
[311817992,1705433446752,-500.0,0.00031917,2]
[311817993,1705433446761,-500.0,0.00031917,5]
[311817994,1705433446770,-503.66,0.00031917,2]
[311817995,1705433446779,-500.0,0.00031917,2]
[311817996,1705433446789,-500.0,0.00031917,2]
[311817997,1705433446798,-361.94622459,0.00031917,2]
[311817998,1705433446808,-501.07794884,0.00031917,2]
[311817999,1705433446817,-500.0,0.00031917,2]
[311818000,1705433446826,-1244.34,0.00031917,2]
[311818001,1705433446836,-816.66,0.00031917,2]
[311818002,1705433446845,-1068.07,0.00031917,2]
[311818003,1705433446854,-1153.35,0.00031917,2]
[311818004,1705433446863,-1737.82,0.00031917,2]
[311818005,1705433446872,-500.0,0.00031917,2]
[311818006,1705433446881,-500.0,0.00031917,2]
[311818007,1705433446891,-500.0,0.00031917,2]
[311818008,1705433446900,-500.0,0.00031917,2]
[311818009,1705433446909,-536.91612611,0.00031917,2]
[311818010,1705433446918,-6352.72,0.00031917,2]